bitfinex/quotes_BTCUSD_20260310
["timestamp","ask_amount","ask_price","bid_price","bid_amount"]
[1773110341168,0.03,70000.0,69991.0,0.00148]
[1773110341334,0.36263368,69998.0,69992.0,0.00148]
[1773110341509,0.03011408,69998.0,69993.0,0.00148]
[1773110341687,0.03011408,69998.0,69980.0,0.32599338]
[1773110341898,0.03011408,69998.0,69981.0,0.00148]
[1773110342099,0.03,69996.0,69982.0,0.07144694]
[1773110342491,0.03,69996.0,69982.0,0.4824442]
[1773110342835,0.03,69996.0,69983.0,0.32747338]
[1773110343146,0.00011408,69998.0,69989.0,0.0002]
[1773110343442,0.00011408,69998.0,69990.0,0.00148]
[1773110343657,0.32560766,70005.0,69990.0,0.00148]
[1773110343863,0.32560766,70003.0,69991.0,0.00148]
[1773110344322,0.03,70002.0,69991.0,0.00148]
[1773110345005,0.09101458,70011.0,69991.0,0.00148]
[1773110345006,0.0770372,70012.0,69991.0,0.40065765]
[1773110345249,0.40264486,70012.0,69991.0,0.40065765]
[1773110345470,0.03,70011.0,69991.0,0.15792153]
[1773110345690,0.35560766,70011.0,69991.0,0.15792153]
[1773110346072,0.03,70011.0,69992.0,0.08500388]
[1773110346283,0.03,70010.0,69994.0,0.07143469]
[1773110346803,0.00562,70012.0,69994.0,0.07143469]
[1773110346962,0.07140447,70024.0,69994.0,0.07143469]
[1773110346963,0.00022001,70028.0,70009.0,0.22846523]
[1773110347174,0.00022001,70028.0,70010.0,0.32922]
[1773110347376,0.00022001,70028.0,70011.0,0.32774]
[1773110347588,0.00022001,70028.0,70011.0,0.08500388]
[1773110347787,0.00022001,70028.0,70010.0,0.00148]
[1773110347788,0.00022001,70028.0,70013.0,0.41274388]
[1773110348006,0.00022001,70028.0,70014.0,0.32774]
[1773110348213,0.03,70029.0,70017.0,0.07141122]
[1773110348362,0.03,70029.0,70018.0,0.32922]
[1773110348570,0.03,70028.0,70018.0,0.32922]
[1773110349620,0.03,70027.0,70018.0,0.32922]
[1773110350238,0.07139506,70033.0,70018.0,0.32922]
[1773110350239,0.00022001,70036.0,70020.0,0.32774]
[1773110350450,0.00584001,70040.0,70020.0,0.32774]
[1773110350451,32.23481789,70038.0,70029.0,0.32774]
[1773110350728,32.23481789,70038.0,70030.0,0.00148]
[1773110350729,31.88310127,70038.0,70030.0,0.00148]
[1773110351159,31.22527668,70038.0,70030.0,0.00148]
[1773110351505,31.22527668,70038.0,70031.0,0.00148]
[1773110351844,31.22527668,70038.0,70031.0,0.32922]
[1773110352403,31.22527668,70038.0,70035.0,0.32774]
[1773110352571,31.22527668,70038.0,70034.0,0.0876821]
[1773110352909,31.22527668,70038.0,70033.0,0.32774]
[1773110353110,31.22527668,70038.0,70035.0,0.0876821]
[1773110353317,31.22527668,70038.0,70035.0,0.4154221]
[1773110353479,31.22527668,70038.0,70036.0,0.0876821]
[1773110353682,29.29117979,70038.0,70036.0,0.4154221]
[1773110354000,29.29117979,70038.0,70035.0,0.0876821]
[1773110354001,28.95265723,70038.0,70035.0,0.0876821]
[1773110354198,28.6600374,70038.0,70036.0,0.32774]
[1773110354438,28.6600374,70038.0,70037.0,0.07139083]
[1773110354789,28.32485326,70038.0,70037.0,0.07139083]
[1773110355015,28.32485326,70038.0,70037.0,0.15907293]
[1773110355220,28.32485326,70038.0,70037.0,0.48681293]
[1773110355836,27.98966912,70038.0,70037.0,0.48681293]
[1773110356038,27.32980631,70038.0,70037.0,0.48681293]
[1773110356290,26.98176459,70038.0,70037.0,0.07139083]
[1773110356639,26.98176459,70038.0,70037.0,0.48929293]
[1773110356815,26.64658045,70038.0,70037.0,0.48929293]
[1773110356990,26.64658045,70038.0,70037.0,0.48829293]
[1773110357159,26.64658045,70038.0,70037.0,0.48929293]
[1773110357867,26.32243941,70038.0,70037.0,0.16155293]
[1773110358070,26.32243941,70038.0,70037.0,0.48929293]
[1773110358514,26.32243941,70038.0,70037.0,0.16155293]
[1773110358721,26.32243941,70038.0,70037.0,0.48829293]
[1773110358919,24.01123122,70038.0,70037.0,0.07387083]
[1773110359248,20.17676221,70038.0,70037.0,0.07387083]
[1773110359471,20.17676221,70038.0,70037.0,0.00148]
[1773110359668,20.14138105,70038.0,70037.0,0.35280251]
[1773110359880,20.14138105,70038.0,70037.0,0.35380251]
[1773110360081,19.66030964,70038.0,70037.0,0.35380251]
[1773110360209,19.66030964,70038.0,70037.0,0.07287083]
[1773110360210,18.36393998,70038.0,70037.0,0.07287083]
[1773110360410,18.36393998,70038.0,70037.0,0.38282511]
[1773110360840,18.36393998,70038.0,70037.0,0.15828]
[1773110361034,18.07612535,70038.0,70037.0,0.15828]
[1773110361237,18.07612535,70038.0,70037.0,0.15976]
[1773110361764,18.07612535,70038.0,70037.0,0.39354627]
[1773110361912,17.31219574,70038.0,70037.0,0.4045239]
[1773110362118,15.07862057,70038.0,70037.0,0.4045239]
[1773110362515,15.07862057,70038.0,70034.0,0.0713932]
[1773110362516,15.07862057,70038.0,70035.0,0.27500577]
[1773110362736,14.85105624,70038.0,70036.0,0.00148]
[1773110362937,14.6249719,70038.0,70037.0,0.07139083]
[1773110363147,14.47030234,70038.0,70036.0,0.07287178]
[1773110363359,14.47030234,70038.0,70003.0,0.20704441]
[1773110363360,14.92155278,70038.0,70024.0,0.25960513]
[1773110363612,14.92007278,70038.0,70025.0,0.00148]
[1773110364025,11.30133514,70038.0,70028.0,0.22839341]
[1773110364247,1e-08,70048.0,70031.0,0.18294816]
[1773110364451,0.0004814,70074.0,70040.0,0.03677179]
[1773110364775,0.0004814,70074.0,70062.0,0.00745453]
[1773110364989,0.73446103,70073.0,70063.0,0.07284434]
[1773110365196,0.03,70072.0,70063.0,0.07284434]
[1773110365625,0.0004814,70074.0,70063.0,0.07284434]
[1773110365626,0.0004814,70074.0,70065.0,0.0876821]
[1773110365841,0.00023,70075.0,70065.0,0.0876821]
[1773110365842,0.21509721,70075.0,70065.0,0.0876821]
[1773110366047,0.00562,70096.0,70064.0,3.165698]
[1773110366255,0.03,70092.0,70071.0,0.0876821]
[1773110366462,0.03,70092.0,70070.0,0.22839341]
[1773110366463,0.00562,70096.0,70081.0,0.0876821]
[1773110366687,0.20156163,70096.0,70083.0,0.0876821]
[1773110366900,0.00562,70096.0,70084.0,0.07134295]
[1773110367112,0.00022001,70110.0,70084.0,0.07134295]
[1773110367113,0.00022001,70110.0,70089.0,0.0876821]
[1773110367329,0.00022001,70110.0,70101.0,0.0876821]
[1773110367533,0.00022001,70110.0,70103.0,0.0876821]
[1773110367752,0.00022001,70113.0,70103.0,0.0876821]
[1773110367957,0.00022001,70113.0,70104.0,0.15992]
[1773110367958,0.19579163,70111.0,70104.0,0.15992]
[1773110368162,0.18854163,70111.0,70105.0,0.00148]
[1773110368365,0.18865569,70111.0,70106.0,0.00148]
[1773110368592,0.18865569,70111.0,70091.0,0.2461621]
[1773110368593,0.00011406,70111.0,70107.0,0.00148]
[1773110368801,0.00011406,70111.0,70103.0,0.001]
[1773110368802,0.18854163,70110.0,70103.0,0.001]
[1773110369012,0.18854163,70110.0,70094.0,0.0876821]
[1773110369013,0.18854163,70110.0,70076.0,0.00148]
[1773110369014,0.00023,70100.0,70076.0,0.00148]
[1773110369238,0.00023,70100.0,70068.0,0.00562]
[1773110369239,0.03,70092.0,70068.0,0.00562]
[1773110369445,0.03,70092.0,70062.0,0.05027053]
[1773110369446,0.5585192,70090.0,70069.0,0.00148]
[1773110369650,0.5585192,70090.0,70062.0,0.00745453]
[1773110369871,0.5585192,70090.0,70050.0,0.22862341]
[1773110369872,0.22839341,70080.0,70050.0,0.00023]
[1773110370084,0.22839341,70080.0,70049.0,0.00148]
[1773110370085,0.5285192,70066.0,70049.0,0.00148]
[1773110370288,0.03,70061.0,70049.0,0.00148]
[1773110370517,0.03,70059.0,70049.0,0.00148]
[1773110370718,0.11938319,70066.0,70046.0,0.00148]
[1773110370719,0.5285192,70054.0,70046.0,0.00148]
[1773110370922,0.5285192,70054.0,70040.0,0.00562]
[1773110370923,0.03,70051.0,70040.0,0.00562]
[1773110371130,0.03,70051.0,70040.0,0.0057341]
[1773110371344,0.52860338,70067.0,70041.0,0.07138675]
[1773110371547,0.52860338,70067.0,70041.0,0.07286675]
[1773110371788,0.0713566,70071.0,70041.0,0.07286675]
[1773110371789,0.16751161,70066.0,70042.0,0.0876821]
[1773110372000,0.16751161,70069.0,70042.0,0.0876821]
[1773110372208,0.11938319,70072.0,70043.0,0.00148]
[1773110372429,0.03,70065.0,70041.0,0.07138675]
[1773110372667,0.12086319,70070.0,70044.0,0.00148]
[1773110372668,0.03,70061.0,70044.0,0.00148]
[1773110373118,0.03,70061.0,70045.0,0.07138268]
[1773110373344,0.03,70061.0,70046.0,0.00148]
[1773110373803,0.03,70060.0,70046.0,0.00148]
[1773110374863,0.59996436,70067.0,70046.0,0.00148]
[1773110374864,0.03,70058.0,70046.0,0.00148]
[1773110375651,0.03,70058.0,70047.0,0.07138064]
[1773110375890,0.03,70057.0,70047.0,0.07138064]
[1773110376758,0.00022001,70060.0,70047.0,0.07138064]
[1773110376961,0.00022001,70060.0,70048.0,0.00148]
[1773110377163,0.00022001,70060.0,70049.0,0.00148]
[1773110377382,0.03,70058.0,70049.0,0.00148]
[1773110377608,0.03,70058.0,70050.0,0.07137758]
[1773110378015,0.00022001,70068.0,70050.0,0.07137758]
[1773110378016,0.00045001,70075.0,70051.0,0.0876821]
[1773110378428,0.00045001,70075.0,70053.0,0.0876821]
[1773110378599,0.3477766,70090.0,70056.0,1.198858]
[1773110378600,0.52860338,70088.0,70056.0,1.198858]
[1773110378800,0.52860338,70088.0,70057.0,0.0390621]
[1773110379173,0.07695111,70096.0,70051.0,0.16636398]
[1773110379174,0.52860338,70079.0,70052.0,0.16636398]
[1773110379375,0.03,70078.0,70053.0,0.00148]
[1773110379601,0.03,70076.0,70051.0,0.03560671]
[1773110379825,0.03,70076.0,70053.0,0.07137453]
[1773110380229,0.03,70076.0,70054.0,0.00148]
[1773110380507,0.03,70076.0,70054.0,0.00048]
[1773110380693,0.55860338,70075.0,70057.0,0.001]
[1773110381107,0.55860338,70075.0,70055.0,0.00148]
[1773110381318,0.52860338,70095.0,70056.0,0.04199691]
[1773110381515,0.15884183,70095.0,70056.0,0.04199691]
[1773110381730,0.03,70090.0,70057.0,0.07137045]
[1773110381919,0.03,70086.0,70057.0,0.11296099]
[1773110382094,0.55860338,70086.0,70057.0,0.11396099]
[1773110382297,0.55860338,70086.0,70057.0,0.07237045]
[1773110382511,0.52860338,70092.0,70061.0,0.04117905]
[1773110382687,0.52860338,70092.0,70060.0,2.542231]
[1773110382688,0.52860338,70092.0,70064.0,2.106309]
[1773110382894,0.03,70091.0,70065.0,0.04117905]
[1773110383208,0.00562,70096.0,70066.0,1.872877]
[1773110383395,0.00562,70096.0,70068.0,0.04076689]
[1773110383546,0.00562,70096.0,70069.0,0.00148]
[1773110383751,0.00562,70096.0,70070.0,0.07135721]
[1773110383949,0.00600027,70096.0,70070.0,0.07135721]
[1773110384561,0.00022001,70094.0,70070.0,0.07135721]
[1773110385112,0.00022001,70094.0,70070.0,0.07235721]
[1773110385305,0.03,70090.0,70070.0,0.07235721]
[1773110385444,0.03,70088.0,70071.0,0.00148]
[1773110385853,0.03,70088.0,70072.0,0.07135517]
[1773110386382,0.03,70088.0,70073.0,0.00148]
[1773110386618,0.03,70087.0,70074.0,0.00148]
[1773110386963,0.03,70087.0,70072.0,0.07135517]
[1773110387161,0.00022001,70094.0,70072.0,0.07135517]
[1773110387162,0.15884183,70089.0,70072.0,0.07135517]
[1773110387544,0.52860338,70088.0,70073.0,0.00148]
[1773110387831,0.00022001,70094.0,70073.0,0.00148]
[1773110387832,0.03,70092.0,70073.0,0.00148]
[1773110387990,0.00022001,70094.0,70074.0,0.07135314]
[1773110387991,0.55860338,70090.0,70074.0,0.07135314]
[1773110388390,0.00022001,70094.0,70074.0,0.56723877]
[1773110388819,0.49311489,70094.0,70074.0,0.07135314]
[1773110388997,0.03,70089.0,70075.0,0.00148]
[1773110389197,0.00022001,70094.0,70075.0,0.00148]
[1773110389403,1e-08,70094.0,70077.0,1.867538]
[1773110389645,0.00022001,70101.0,70077.0,1.656312]
[1773110389845,0.49289488,70100.0,70077.0,0.49588563]
[1773110390077,0.49289488,70100.0,70078.0,0.07134906]
[1773110390213,0.00033402,70101.0,70078.0,0.07134906]
[1773110390214,0.03,70094.0,70078.0,0.07134906]
[1773110390413,0.52289488,70090.0,70079.0,0.00148]
[1773110391254,0.54830906,70086.0,70080.0,0.00148]
[1773110391457,0.51682906,70086.0,70078.0,0.07234906]
[1773110391665,0.51830906,70084.0,70060.0,0.07136713]
[1773110391836,0.29972082,70100.0,70060.0,0.07136713]
[1773110391837,0.51830906,70082.0,70069.0,0.07279823]
[1773110392200,0.51830906,70080.0,70069.0,0.00148]
[1773110392375,0.51830906,70080.0,70071.0,0.07135415]
[1773110392576,0.51830906,70080.0,70072.0,0.00148]
[1773110392793,0.03,70075.0,70065.0,0.0713623]
[1773110393088,0.07133715,70090.0,70065.0,0.0713623]
[1773110393089,0.0713298,70097.0,70066.0,0.00148]
[1773110393397,0.51830906,70092.0,70066.0,0.50806355]
[1773110393555,0.51830906,70092.0,70066.0,0.50664325]
[1773110393739,0.51830906,70079.0,70063.0,0.0713623]
[1773110393945,0.03,70070.0,70052.0,0.07137351]
[1773110394145,0.03,70064.0,70054.0,0.07137351]
[1773110394485,0.03,70064.0,70053.0,0.07137351]
[1773110394486,0.54830906,70064.0,70053.0,0.07137351]
[1773110394919,0.15604453,70069.0,70054.0,0.00148]
[1773110394920,0.51830906,70059.0,70054.0,0.00148]
[1773110395142,0.70435359,70056.0,70055.0,0.00148]
[1773110395269,0.07173826,70070.0,70055.0,0.00148]
[1773110395270,0.00038003,70070.0,70055.0,0.00148]
[1773110395467,0.51864909,70070.0,70056.0,0.00134799]
[1773110395671,0.51864909,70070.0,70055.0,0.00148]
[1773110395672,0.51830906,70068.0,70055.0,0.00148]
[1773110395978,0.00034003,70070.0,70048.0,0.07137962]
[1773110395979,0.51830906,70065.0,70056.0,0.00148]
[1773110396180,0.03,70060.0,70048.0,0.07137962]
[1773110396377,0.00034003,70070.0,70047.0,0.07138057]
[1773110396378,0.54830906,70056.0,70047.0,0.07138057]
[1773110396567,0.54830906,70056.0,70048.0,0.00148]
[1773110397592,0.54830906,70056.0,70047.0,0.07138057]
[1773110397793,0.46416623,70056.0,70048.0,0.00148]
[1773110398237,0.46416623,70056.0,70049.0,0.0713786]
[1773110399682,0.46416623,70056.0,70047.0,0.07138057]
[1773110399884,0.46416623,70056.0,70048.0,0.00148]
[1773110400119,0.46416623,70056.0,70048.0,0.07305929]
[1773110400323,0.46416623,70056.0,70048.0,0.07157929]
[1773110400529,0.46416623,70056.0,70047.0,0.07138004]
[1773110400530,0.51830906,70053.0,70049.0,0.00148]
[1773110400727,0.33413203,70051.0,70050.0,0.00148]
[1773110400900,0.33413203,70051.0,70047.0,0.00148]
[1773110401215,0.51830906,70064.0,70047.0,0.00148]
[1773110401388,0.00034003,70070.0,70047.0,0.00148]
[1773110401599,0.00034003,70070.0,70050.0,0.50516325]
[1773110402017,0.00034003,70070.0,70054.0,0.16150167]
[1773110402231,0.03,70069.0,70056.0,0.07137147]
[1773110402428,0.54830906,70067.0,70057.0,0.00148]
[1773110402634,0.54830906,70067.0,70049.0,0.07137802]
[1773110402635,0.54830906,70067.0,70055.0,0.07137147]
[1773110402927,0.54830906,70065.0,70056.0,0.00148]
[1773110403128,0.15604453,70067.0,70050.0,0.00148]
[1773110403129,0.03,70059.0,70050.0,0.00148]
[1773110403342,0.54830906,70057.0,70051.0,0.00148]
[1773110403790,0.51530906,70057.0,70051.0,0.00148]
[1773110403916,0.51530906,70057.0,70048.0,0.00148]
[1773110404115,0.15604453,70059.0,70048.0,0.00148]
[1773110404353,0.53244947,70058.0,70048.0,0.00148]
[1773110404556,0.53244947,70058.0,70041.0,0.07138573]
[1773110404765,0.03,70054.0,70042.0,0.00148]
[1773110405086,0.03,70054.0,70041.0,0.07138573]
[1773110405371,0.03,70052.0,70043.0,0.00148]
[1773110405626,0.03,70052.0,70043.0,0.53673971]
[1773110405828,0.03,70052.0,70043.0,0.00148]
[1773110406221,0.50244947,70060.0,70044.0,0.0713837]
[1773110406222,0.03,70051.0,70044.0,0.0713837]
[1773110406392,0.03,70051.0,70042.0,0.07138502]
[1773110406666,0.03,70051.0,70045.0,0.00148]
[1773110406780,0.07136272,70065.0,70045.0,0.00148]
[1773110406983,0.50244947,70063.0,70045.0,0.00148]
[1773110407215,0.03,70059.0,70045.0,0.00148]
[1773110407413,0.00022001,70055.0,70045.0,0.00148]
[1773110407874,0.00022001,70055.0,70046.0,0.00148]
[1773110408106,0.00022001,70055.0,70046.0,0.00048]
[1773110408299,0.00022001,70055.0,70047.0,0.00148]
[1773110408731,0.00022001,70063.0,70048.0,0.53525971]
[1773110410199,0.00022001,70063.0,70049.0,0.0713786]
[1773110410404,0.00022001,70063.0,70049.0,0.60663831]
[1773110410673,0.07135445,70073.0,70049.0,0.60663831]
[1773110410675,0.00023,70075.0,70052.0,0.53525971]
[1773110410887,0.23439423,70086.0,70063.0,0.16636398]
[1773110410888,0.16305312,70086.0,70063.0,0.16636398]
[1773110411083,0.16305312,70086.0,70055.0,0.6521158]
[1773110411084,0.16305312,70086.0,70065.0,0.53525971]
[1773110411285,0.66550259,70086.0,70066.0,0.00148]
[1773110411457,0.53244947,70085.0,70066.0,0.00148]
[1773110411844,0.03,70081.0,70067.0,0.00148]
[1773110412040,0.03,70079.0,70067.0,0.00148]
[1773110412232,0.03,70079.0,70068.0,0.07135925]
[1773110412437,0.03,70079.0,70068.0,0.60661896]
[1773110413058,0.03,70085.0,70068.0,0.60661896]
[1773110414071,0.03,70087.0,70068.0,0.60661896]
[1773110415179,0.03,70088.0,70068.0,0.60661896]
[1773110415381,0.50244947,70081.0,70068.0,0.07135925]
[1773110415584,0.69550259,70078.0,70069.0,0.00148]
[1773110415787,0.19305312,70078.0,70064.0,0.07136332]
[1773110416012,0.03,70076.0,70065.0,0.00148]
[1773110416167,0.07133735,70090.0,70066.0,0.53525971]
[1773110416370,0.07133685,70091.0,70067.0,0.07136026]
[1773110416586,0.66550259,70090.0,70068.0,0.53673971]
[1773110416905,0.03,70088.0,70068.0,0.53673971]
[1773110417109,0.50244947,70097.0,70071.0,0.16094283]
[1773110417347,0.00093001,70100.0,70079.0,0.16094283]
[1773110417556,0.16327313,70108.0,70090.0,0.16636398]
[1773110417557,0.00022001,70108.0,70090.0,0.16636398]
[1773110417715,0.00022001,70108.0,70097.0,0.357298]
[1773110417914,0.03,70115.0,70098.0,0.53673971]
[1773110418116,0.03,70109.0,70094.0,0.16636398]
[1773110418282,0.03,70105.0,70088.0,0.53525971]
[1773110418489,0.07146481,70112.0,70092.0,0.53525971]
[1773110418490,0.00015,70112.0,70092.0,0.53525971]
[1773110418687,0.07146512,70112.0,70093.0,0.53673971]
[1773110418886,0.00015,70112.0,70093.0,0.53673971]
[1773110419289,0.00015,70112.0,70095.0,0.53525971]
[1773110420354,0.00015,70112.0,70096.0,0.16094283]
[1773110420554,0.00010119,70113.0,70099.0,0.53525971]
[1773110420766,0.00010119,70113.0,70100.0,0.00148]
[1773110421414,0.00010119,70113.0,70101.0,0.53525971]
[1773110421829,0.00010119,70113.0,70102.0,0.00148]
[1773110422286,0.00010119,70113.0,70098.0,0.07132871]
[1773110422287,0.50244947,70112.0,70098.0,0.07132871]
[1773110422487,0.53244947,70111.0,70101.0,0.07132565]
[1773110423156,0.53244947,70111.0,70102.0,0.00148]
[1773110423360,0.19305312,70111.0,70100.0,0.001]
[1773110423540,0.69550259,70109.0,70103.0,0.00148]
[1773110424077,0.03,70109.0,70103.0,0.00148]
[1773110424322,0.03,70109.0,70104.0,0.00148]
[1773110424578,0.53244947,70109.0,70105.0,0.00148]
[1773110424771,0.03,70111.0,70106.0,0.00148]
[1773110425002,0.69550259,70107.0,70106.0,0.00148]
[1773110425680,0.03,70107.0,70106.0,0.00148]
[1773110426178,0.03,70106.0,70103.0,0.00148]
[1773110426398,0.19305312,70106.0,70103.0,0.00148]
[1773110426844,0.16305312,70103.0,70102.0,0.00148]
[1773110427073,0.16305312,70103.0,70095.0,0.07153118]
[1773110427074,0.19305312,70103.0,70095.0,0.0002]
[1773110427294,0.19305312,70103.0,70098.0,0.00148]
[1773110427516,0.19305312,70103.0,70095.0,0.0002]
[1773110427745,0.19305312,70103.0,70098.0,0.00148]
[1773110428426,0.03,70102.0,70097.0,0.00148]
[1773110429346,0.50244947,70107.0,70092.0,0.07144822]
[1773110429347,0.03,70101.0,70092.0,0.07144822]
[1773110429573,0.03,70101.0,70095.0,0.00148]
[1773110430193,0.03,70097.0,70088.0,0.07133801]
[1773110430540,0.03011393,70097.0,70090.0,0.07133673]
[1773110430741,0.03011393,70097.0,70091.0,0.00148]
[1773110431393,0.19305312,70096.0,70091.0,0.0728158]
[1773110432828,0.00011393,70097.0,70087.0,0.00148]
[1773110432829,0.53244947,70092.0,70087.0,0.00148]
[1773110433029,0.4514417,70091.0,70086.0,0.00148]
[1773110433186,0.0714437,70097.0,70086.0,0.00148]
[1773110433187,0.09169949,70090.0,70086.0,0.00148]
[1773110433405,0.0714437,70097.0,70077.0,0.07134906]
[1773110433406,0.43109584,70091.0,70077.0,0.07134906]
[1773110433602,0.43109584,70091.0,70078.0,0.07282906]
[1773110434572,0.43109584,70091.0,70079.0,0.00148]
[1773110434776,0.43109584,70091.0,70069.0,0.49693252]
[1773110434777,0.55637471,70088.0,70080.0,0.00148]
[1773110434996,0.03,70086.0,70061.0,0.07136624]
[1773110435309,0.00148,70088.0,70063.0,0.49693252]
[1773110435310,0.03,70084.0,70063.0,0.49693252]
[1773110435511,0.03,70084.0,70063.0,0.65787535]
[1773110437135,0.55637471,70082.0,70064.0,0.07136332]
[1773110437544,0.55637471,70082.0,70065.0,0.00148]
[1773110437718,0.03,70082.0,70065.0,0.00148]
[1773110437920,0.03,70082.0,70065.0,0.16242283]
[1773110439066,0.07134397,70086.0,70065.0,0.16242283]
[1773110439067,0.52637471,70099.0,70066.0,0.49693252]
[1773110439241,0.07155675,70100.0,70071.0,1.621988]
[1773110439391,0.07155675,70100.0,70067.0,0.23772424]
[1773110439392,0.00023,70100.0,70074.0,2.421571]
[1773110439601,0.07155686,70100.0,70080.0,0.49693252]
[1773110439784,0.07155686,70100.0,70074.0,0.00011393]
[1773110439785,0.07155688,70100.0,70084.0,0.16270719]
[1773110439985,0.03,70099.0,70085.0,0.00148]
[1773110440183,0.03,70099.0,70085.0,0.66111971]
[1773110440477,0.03,70099.0,70085.0,0.00148]
[1773110440627,0.03,70099.0,70087.0,0.16270719]
[1773110441147,0.03,70099.0,70088.0,0.07133888]
[1773110441148,0.10132801,70099.0,70088.0,0.07133888]
[1773110441349,0.03,70098.0,70088.0,0.07133888]
[1773110442433,0.00022001,70095.0,70086.0,0.07133888]
[1773110442824,0.03,70093.0,70083.0,0.07134382]
[1773110443031,0.55637471,70091.0,70084.0,0.00148]
[1773110443226,0.55637471,70091.0,70076.0,0.07135008]
[1773110443227,0.627711,70091.0,70076.0,0.16636398]
[1773110443449,0.627711,70091.0,70074.0,0.00011393]
[1773110443450,0.03,70087.0,70074.0,0.00011393]
[1773110443816,0.03,70085.0,70075.0,0.00148]
[1773110444275,0.52637471,70087.0,70067.0,0.00148]
[1773110444276,0.03,70081.0,70067.0,0.00148]
[1773110444471,0.55637471,70079.0,70067.0,0.0015941]
[1773110444718,0.55637471,70079.0,70067.0,0.00148]
[1773110444923,0.55637471,70079.0,70065.0,0.00148]
[1773110445142,0.55637471,70079.0,70053.0,0.65983971]
[1773110445143,0.18013873,70075.0,70063.0,0.00148]
[1773110445444,0.03,70073.0,70063.0,0.00148]
[1773110445636,0.03,70073.0,70062.0,0.00148]
[1773110445771,0.03,70073.0,70053.0,0.07157392]
[1773110445971,0.55637471,70071.0,70054.0,0.00148]
[1773110446173,0.55637471,70071.0,70053.0,0.07157392]
[1773110446174,0.18013873,70069.0,70053.0,0.0002]
[1773110446387,0.00148,70075.0,70053.0,0.07157434]
[1773110446388,0.03,70067.0,70053.0,0.07157434]
[1773110446844,0.03,70067.0,70054.0,0.16270719]
[1773110447045,0.03,70067.0,70055.0,0.49693252]
[1773110447353,0.03,70075.0,70057.0,0.49693252]
[1773110447587,0.03,70075.0,70056.0,0.07137147]
[1773110447823,0.03,70075.0,70042.0,0.00035]
[1773110447824,0.03,70063.0,70043.0,0.16270719]
[1773110448035,0.03,70059.0,70050.0,0.00148]
[1773110448218,0.55637471,70057.0,70047.0,0.00148]
[1773110449351,0.55637471,70057.0,70046.0,0.0002]
[1773110449352,0.03,70055.0,70046.0,0.0002]
[1773110449578,0.03,70055.0,70047.0,0.00148]
[1773110450401,0.03,70054.0,70047.0,0.00148]
[1773110451465,0.03,70054.0,70047.0,0.00168]
[1773110451656,0.07284323,70065.0,70047.0,0.00168]
[1773110451657,0.03,70063.0,70050.0,0.49693252]
[1773110451857,0.03,70063.0,70050.0,0.49731255]
[1773110452270,0.03,70063.0,70051.0,0.00148]
[1773110452774,0.03,70066.0,70051.0,0.00148]
[1773110453266,0.03,70066.0,70054.0,0.15060879]
[1773110453427,0.10136166,70066.0,70050.0,0.07175725]
[1773110453627,0.52030902,70065.0,70051.0,0.00148]
[1773110453850,0.26327775,70066.0,70051.0,0.00148]
[1773110453851,0.03,70064.0,70051.0,0.00148]
[1773110454016,0.03,70064.0,70050.0,0.07175725]
[1773110454221,0.55030902,70064.0,70051.0,0.00148]
[1773110454420,0.03,70062.0,70052.0,0.00148]
[1773110454648,0.55030902,70060.0,70051.0,0.00148]
[1773110454847,0.03,70060.0,70051.0,0.00148]
[1773110455473,0.03,70060.0,70052.0,0.07137554]
[1773110455677,0.10136754,70060.0,70052.0,0.07137554]
[1773110455877,0.03,70059.0,70052.0,0.07137554]
[1773110456121,0.16191609,70067.0,70052.0,0.07137554]
[1773110456122,0.07135314,70074.0,70052.0,0.07137554]
[1773110456239,0.52030902,70073.0,70053.0,0.00148]
[1773110456451,0.52030902,70073.0,70049.0,0.07137554]
[1773110456452,0.22794945,70070.0,70054.0,0.00148]
[1773110456658,0.16191609,70067.0,70054.0,0.00148]
[1773110456913,0.03,70063.0,70054.0,0.00148]
[1773110457057,0.55030902,70063.0,70054.0,0.00148]
[1773110457459,0.03,70061.0,70047.0,0.07158022]
[1773110457738,0.03038027,70061.0,70048.0,0.00148]
[1773110457933,0.03038027,70061.0,70049.0,0.00148]
[1773110457934,0.03,70059.0,70049.0,0.00148]
[1773110459722,0.03,70058.0,70050.0,0.07137758]
[1773110460037,0.03,70058.0,70049.0,0.07285758]
[1773110460741,0.03,70060.0,70049.0,0.07285758]
[1773110461534,0.03,70060.0,70050.0,0.00148]
[1773110462957,0.03,70058.0,70050.0,0.07285659]
[1773110463142,0.03,70058.0,70051.0,0.48944206]
[1773110463510,0.03,70058.0,70050.0,0.22346538]
[1773110463715,0.03,70058.0,70050.0,0.07285659]
[1773110463910,0.0713676,70060.0,70050.0,0.07285724]
[1773110463911,0.03,70059.0,70050.0,0.07285724]
[1773110464327,0.03,70059.0,70051.0,0.00148]
[1773110464985,0.0713623,70065.0,70053.0,0.66041801]
[1773110465190,0.0713623,70065.0,70053.0,0.66079828]
[1773110466062,0.03,70064.0,70053.0,0.66079828]
[1773110466279,0.071352,70076.0,70055.0,0.15060879]
[1773110466630,1e-08,70075.0,70055.0,0.66097938]
[1773110466831,1e-08,70075.0,70058.0,0.07136943]
[1773110467046,1e-08,70075.0,70059.0,0.15060879]
[1773110467173,1e-08,70075.0,70060.0,0.50980922]
[1773110467619,1e-08,70075.0,70061.0,0.00148]
[1773110468214,1e-08,70075.0,70062.0,0.00148]
[1773110468397,1e-08,70075.0,70060.0,0.50980922]
[1773110468593,1e-08,70075.0,70061.0,0.00148]
[1773110468995,0.07134397,70084.0,70061.0,0.00148]
[1773110468996,14.16856912,70090.0,70064.0,0.66041801]
[1773110469198,14.16856912,70090.0,70068.0,0.15060879]
[1773110469199,13.7770193,70090.0,70068.0,0.15060879]
[1773110469402,13.7770193,70090.0,70064.0,0.03234816]
[1773110469403,13.7770193,70090.0,70073.0,0.14557522]
[1773110469707,13.7770193,70090.0,70074.0,0.16092]
[1773110469914,0.03,70089.0,70076.0,0.14557522]
[1773110470115,0.03,70089.0,70077.0,0.14557522]
[1773110470321,13.03229373,70090.0,70080.0,0.50980922]
[1773110470542,11.91303323,70090.0,70084.0,0.14557522]
[1773110470747,11.91303323,70090.0,70087.0,0.50980922]
[1773110470923,11.91303323,70090.0,70076.0,0.001]
[1773110471130,11.91314727,70090.0,70079.0,0.14557522]